[Event "Titled Tuesday Blitz April 4 Early 2023"]
[White "Prohaszka, Peter"]
[Black "Sreyas Payyappat"]
[WhiteFideId "726265"]
[BlackFideId "46674969"]
[WhiteElo "2626"]
[BlackElo "2083"]
[Result "1-0"]
[Round "08"]
[TimeControl "180+2"]
[Date "2023.04.04"]
[WhiteClock "0:00:15"]
[BlackClock "0:00:17"]

1. d4 {[%clk 0:02:52]}  Nf6 {[%clk 0:02:59]} 2. Bf4 {[%clk 0:02:51]}  c5 {[%clk 0:02:59]} 3. d5 {[%clk 0:02:49]}  e6 {[%clk 0:02:59]} 4. Nc3 {[%clk 0:02:50]}  exd5 {[%clk 0:03:00]} 5. Nxd5 {[%clk 0:02:50]}  d6 {[%clk 0:02:59]} 6. e4 {[%clk 0:02:40]}  Nc6 {[%clk 0:02:56]} 7. Nf3 {[%clk 0:02:26]}  Be6 {[%clk 0:02:54]} 8. Bc4 {[%clk 0:02:09]}  Nxe4 {[%clk 0:02:47]} 9. O-O {[%clk 0:02:08]}  g5 {[%clk 0:02:20]} 10. Qe2 {[%clk 0:01:39]}  gxf4 {[%clk 0:01:59]} 11. Qxe4 {[%clk 0:01:38]}  Bg7 {[%clk 0:01:57]} 12. Nxf4 {[%clk 0:01:29]}  Qe7 {[%clk 0:01:48]} 13. Bxe6 {[%clk 0:00:51]}  fxe6 {[%clk 0:01:44]} 14. Nxe6 {[%clk 0:00:52]}  Be5 {[%clk 0:01:41]} 15. Qg4 {[%clk 0:00:45]}  h5 {[%clk 0:01:19]} 16. Qg6+ {[%clk 0:00:44]}  Kd7 {[%clk 0:01:00]} 17. Neg5 {[%clk 0:00:37]}  Raf8 {[%clk 0:00:59]} 18. Rad1 {[%clk 0:00:37]}  Rhg8 {[%clk 0:00:57]} 19. Qxh5 {[%clk 0:00:34]}  Kc7 {[%clk 0:00:27]} 20. Qg4 {[%clk 0:00:28]}  Rf6 {[%clk 0:00:13]} 21. h4 {[%clk 0:00:27]}  Kb8 {[%clk 0:00:10]} 22. Rfe1 {[%clk 0:00:27]}  Qg7 {[%clk 0:00:07]} 23. c3 {[%clk 0:00:22]}  Rf4 {[%clk 0:00:03]} 24. Qe6 {[%clk 0:00:17]}  Rxh4 {[%clk 0:00:03]} 25. Nxh4 {[%clk 0:00:12]}  Qxg5 {[%clk 0:00:04]} 26. Qh3 {[%clk 0:00:12]}  Rh8 {[%clk 0:00:04]} 27. Nf3 {[%clk 0:00:09]}  Qg7 {[%clk 0:00:02]} 28. Qf5 {[%clk 0:00:07]}  Qh6 {[%clk 0:00:02]} 29. Kf1 {[%clk 0:00:07]}  Re8 {[%clk 0:00:01]} 30. Nxe5 {[%clk 0:00:05]}  Qh1+ {[%clk 0:00:01]} 31. Ke2 {[%clk 0:00:05]}  Rxe5+ {[%clk 0:00:01]} 32. Qxe5 {[%clk 0:00:05]}  Qxe1+ {[%clk 0:00:02]} 33. Rxe1 {[%clk 0:00:05]}  Nxe5 {[%clk 0:00:03]} 34. f4 {[%clk 0:00:05]}  Nc4 {[%clk 0:00:03]} 35. b3 {[%clk 0:00:06]}  Na3 {[%clk 0:00:03]} 36. Rf1 {[%clk 0:00:05]}  Nb5 {[%clk 0:00:04]} 37. Kd3 {[%clk 0:00:06]}  d5 {[%clk 0:00:04]} 38. f5 {[%clk 0:00:06]}  Nd6 {[%clk 0:00:05]} 39. f6 {[%clk 0:00:06]}  Nf7 {[%clk 0:00:06]} 40. g4 {[%clk 0:00:07]}  Kc7 {[%clk 0:00:06]} 41. g5 {[%clk 0:00:07]}  Kd7 {[%clk 0:00:06]} 42. g6 {[%clk 0:00:08]}  Ne5+ {[%clk 0:00:07]} 43. Kc2 {[%clk 0:00:08]}  Nxg6 {[%clk 0:00:08]} 44. f7 {[%clk 0:00:08]}  Nf8 {[%clk 0:00:09]} 45. c4 {[%clk 0:00:07]}  d4 {[%clk 0:00:09]} 46. b4 {[%clk 0:00:07]}  b6 {[%clk 0:00:09]} 47. bxc5 {[%clk 0:00:07]}  bxc5 {[%clk 0:00:10]} 48. Rf5 {[%clk 0:00:08]}  Kd6 {[%clk 0:00:10]} 49. Rd5+ {[%clk 0:00:08]}  Kc6 {[%clk 0:00:10]} 50. Rd8 {[%clk 0:00:08]}  Ne6 {[%clk 0:00:10]} 51. f8=Q {[%clk 0:00:09]}  Nxf8 {[%clk 0:00:10]} 52. Rxf8 {[%clk 0:00:10]}  Kb6 {[%clk 0:00:11]} 53. Rd8 {[%clk 0:00:10]}  Ka5 {[%clk 0:00:12]} 54. Rd5 {[%clk 0:00:11]}  Kb4 {[%clk 0:00:12]} 55. Kd3 {[%clk 0:00:11]}  a5 {[%clk 0:00:13]} 56. Re5 {[%clk 0:00:12]}  a4 {[%clk 0:00:13]} 57. Rd5 {[%clk 0:00:12]}  Ka3 {[%clk 0:00:14]} 58. Rxc5 {[%clk 0:00:13]}  Kxa2 {[%clk 0:00:14]} 59. Kxd4 {[%clk 0:00:13]}  a3 {[%clk 0:00:15]} 60. Ra5 {[%clk 0:00:13]}  Kb3 {[%clk 0:00:16]} 61. c5 {[%clk 0:00:13]}  a2 {[%clk 0:00:17]} 62. c6 {[%clk 0:00:14]}  Kb2 {[%clk 0:00:18]} 63. Rxa2+ {[%clk 0:00:14]}  Kxa2 {[%clk 0:00:17]} 64. c7 {[%clk 0:00:15]} 1-0


[Site "https://www.chess.com"]

[Event "Titled Tuesday Blitz April 4 Early 2023"]
[White "koncheto"]
[Black "Perez Gormaz, Matias"]
[BlackFideId "3406342"]
[WhiteElo "2531"]
[BlackElo "2362"]
[Result "1-0"]
[Round "08"]
[TimeControl "180+2"]
[Date "2023.04.04"]
[WhiteClock "0:00:41"]
[BlackClock "0:00:04"]

1. e4 {[%clk 0:03:00]}  c5 {[%clk 0:03:00]} 2. Nf3 {[%clk 0:03:00]}  Nc6 {[%clk 0:03:00]} 3. d4 {[%clk 0:03:00]}  cxd4 {[%clk 0:03:01]} 4. Nxd4 {[%clk 0:03:00]}  Nf6 {[%clk 0:03:01]} 5. Nc3 {[%clk 0:03:01]}  d6 {[%clk 0:03:02]} 6. Bg5 {[%clk 0:03:00]}  Bd7 {[%clk 0:03:02]} 7. Bc4 {[%clk 0:02:55]}  Rc8 {[%clk 0:02:57]} 8. Bb3 {[%clk 0:02:55]}  Qa5 {[%clk 0:02:39]} 9. Bxf6 {[%clk 0:02:53]}  gxf6 {[%clk 0:02:40]} 10. O-O {[%clk 0:02:52]}  Rg8 {[%clk 0:02:32]} 11. Nd5 {[%clk 0:02:47]}  Nxd4 {[%clk 0:02:12]} 12. Qxd4 {[%clk 0:02:35]}  Qc5 {[%clk 0:02:10]} 13. Qd3 {[%clk 0:02:33]}  Bg7 {[%clk 0:02:04]} 14. Rad1 {[%clk 0:02:28]}  e6 {[%clk 0:02:03]} 15. Ne3 {[%clk 0:02:11]}  Bf8 {[%clk 0:01:29]} 16. Rfe1 {[%clk 0:02:05]}  b5 {[%clk 0:01:26]} 17. f4 {[%clk 0:01:59]}  Bh6 {[%clk 0:01:18]} 18. f5 {[%clk 0:01:52]}  Bf4 {[%clk 0:01:09]} 19. Kh1 {[%clk 0:01:48]}  Be5 {[%clk 0:01:03]} 20. fxe6 {[%clk 0:01:45]}  fxe6 {[%clk 0:01:03]} 21. Nf5 {[%clk 0:01:45]}  exf5 {[%clk 0:00:15]} 22. Bxg8 {[%clk 0:01:45]}  Qxc2 {[%clk 0:00:14]} 23. Qh3 {[%clk 0:01:38]}  Kd8 {[%clk 0:00:10]} 24. Qxh7 {[%clk 0:01:15]}  Rc5 {[%clk 0:00:05]} 25. b4 {[%clk 0:01:06]}  Rc3 {[%clk 0:00:05]} 26. exf5 {[%clk 0:01:05]}  Bxf5 {[%clk 0:00:05]} 27. Qxa7 {[%clk 0:00:59]}  Rh3 {[%clk 0:00:02]} 28. Qb8+ {[%clk 0:00:50]}  Ke7 {[%clk 0:00:02]} 29. Qc7+ {[%clk 0:00:46]}  Kf8 {[%clk 0:00:03]} 30. Qxc2 {[%clk 0:00:42]}  Bxc2 {[%clk 0:00:02]} 31. gxh3 {[%clk 0:00:41]}  Bxd1 {[%clk 0:00:03]} 32. Rxd1 {[%clk 0:00:42]}  Kxg8 {[%clk 0:00:04]} 33. Kg2 {[%clk 0:00:42]}  Kf7 {[%clk 0:00:04]} 34. Rd5 {[%clk 0:00:40]}  Ke6 {[%clk 0:00:02]} 35. Rxb5 {[%clk 0:00:41]}  d5 {[%clk 0:00:03]} 36. Kf3 {[%clk 0:00:41]}  d4 {[%clk 0:00:03]} 37. Ke4 {[%clk 0:00:41]}  f5+ {[%clk 0:00:03]} 38. Kd3 {[%clk 0:00:41]}  Bxh2 {[%clk 0:00:04]} 39. Kxd4 {[%clk 0:00:41]} 1-0


[Site "https://www.chess.com"]

[Event "Titled Tuesday Blitz April 4 Early 2023"]
[White "Oleksiyenko, Mykhaylo"]
[Black "Bayo Milagro, Alvaro"]
[WhiteFideId "4152417"]
[BlackFideId "22275240"]
[WhiteElo "2551"]
[BlackElo "2270"]
[Result "1-0"]
[Round "08"]
[TimeControl "180+2"]
[Date "2023.04.04"]
[WhiteClock "0:00:20"]
[BlackClock "0:00:01"]

1. e4 {[%clk 0:03:00]}  e5 {[%clk 0:02:59]} 2. Nf3 {[%clk 0:03:00]}  Nc6 {[%clk 0:02:59]} 3. Nc3 {[%clk 0:03:00]}  Nf6 {[%clk 0:02:59]} 4. d4 {[%clk 0:03:00]}  exd4 {[%clk 0:02:59]} 5. Nxd4 {[%clk 0:03:01]}  Bb4 {[%clk 0:02:59]} 6. Nxc6 {[%clk 0:03:00]}  bxc6 {[%clk 0:03:00]} 7. Bd3 {[%clk 0:03:00]}  d5 {[%clk 0:03:00]} 8. Bd2 {[%clk 0:03:01]}  O-O {[%clk 0:02:45]} 9. O-O {[%clk 0:03:00]}  Bxc3 {[%clk 0:02:43]} 10. Bxc3 {[%clk 0:03:01]}  Nxe4 {[%clk 0:02:41]} 11. Bxe4 {[%clk 0:03:01]}  dxe4 {[%clk 0:02:41]} 12. Qh5 {[%clk 0:03:00]}  Qd5 {[%clk 0:02:16]} 13. Qh4 {[%clk 0:02:55]}  Qe6 {[%clk 0:02:06]} 14. Qg3 {[%clk 0:02:49]}  Qg6 {[%clk 0:02:05]} 15. Qxc7 {[%clk 0:02:49]}  Bh3 {[%clk 0:02:01]} 16. Qg3 {[%clk 0:02:48]}  Qxg3 {[%clk 0:02:01]} 17. fxg3 {[%clk 0:02:34]}  Be6 {[%clk 0:01:57]} 18. Kf2 {[%clk 0:02:32]}  Rad8 {[%clk 0:01:53]} 19. Ke3 {[%clk 0:02:32]}  f5 {[%clk 0:01:53]} 20. Rad1 {[%clk 0:02:28]}  Kf7 {[%clk 0:01:51]} 21. b3 {[%clk 0:02:21]}  g6 {[%clk 0:01:49]} 22. g4 {[%clk 0:02:15]}  Rd5 {[%clk 0:01:47]} 23. Rxd5 {[%clk 0:02:14]}  cxd5 {[%clk 0:01:46]} 24. Bd4 {[%clk 0:02:13]}  Rc8 {[%clk 0:01:35]} 25. c3 {[%clk 0:02:13]}  Ke7 {[%clk 0:01:32]} 26. g5 {[%clk 0:02:13]}  a6 {[%clk 0:01:26]} 27. Kf4 {[%clk 0:02:13]}  Kd6 {[%clk 0:01:24]} 28. Be5+ {[%clk 0:02:08]}  Kd7 {[%clk 0:01:21]} 29. Rd1 {[%clk 0:02:05]}  a5 {[%clk 0:01:12]} 30. Bd4 {[%clk 0:01:25]}  Kd6 {[%clk 0:01:08]} 31. Re1 {[%clk 0:01:24]}  Bd7 {[%clk 0:00:56]} 32. Re3 {[%clk 0:01:22]}  Re8 {[%clk 0:00:47]} 33. Rh3 {[%clk 0:01:19]}  Re7 {[%clk 0:00:47]} 34. Bf6 {[%clk 0:01:16]}  Rf7 {[%clk 0:00:47]} 35. Rh6 {[%clk 0:00:52]}  Bb5 {[%clk 0:00:43]} 36. Ke3 {[%clk 0:00:44]}  Bf1 {[%clk 0:00:37]} 37. Kf2 {[%clk 0:00:40]}  Bd3 {[%clk 0:00:37]} 38. h4 {[%clk 0:00:37]}  f4 {[%clk 0:00:35]} 39. h5 {[%clk 0:00:36]}  Ke6 {[%clk 0:00:19]} 40. hxg6 {[%clk 0:00:36]}  hxg6 {[%clk 0:00:20]} 41. g3 {[%clk 0:00:28]}  fxg3+ {[%clk 0:00:07]} 42. Kxg3 {[%clk 0:00:28]}  Kf5 {[%clk 0:00:07]} 43. Kf2 {[%clk 0:00:26]}  Rb7 {[%clk 0:00:03]} 44. Ke3 {[%clk 0:00:25]}  Bb1 {[%clk 0:00:02]} 45. Rh2 {[%clk 0:00:23]}  Ke6 {[%clk 0:00:01]} 46. Rf2 {[%clk 0:00:23]}  Rh7 {[%clk 0:00:01]} 47. Bd4 {[%clk 0:00:21]}  Rh3+ {[%clk 0:00:01]} 48. Kd2 {[%clk 0:00:21]}  Rd3+ {[%clk 0:00:01]} 49. Kc1 {[%clk 0:00:22]}  Bxa2 {[%clk 0:00:02]} 50. Rxa2 {[%clk 0:00:21]}  Kf5 {[%clk 0:00:01]} 51. Rxa5 {[%clk 0:00:20]} 1-0


[Site "https://www.chess.com"]

[Event "Titled Tuesday Blitz April 4 Early 2023"]
[White "Forgacs, Attila Jr."]
[Black "Shuvalova, Polina"]
[WhiteFideId "773654"]
[BlackFideId "24171760"]
[WhiteElo "2168"]
[BlackElo "2281"]
[Result "0-1"]
[Round "08"]
[TimeControl "180+2"]
[Date "2023.04.04"]
[WhiteClock "0:00:14"]
[BlackClock "0:00:48"]

1. e4 {[%clk 0:03:00]}  c6 {[%clk 0:02:59]} 2. d4 {[%clk 0:03:00]}  d5 {[%clk 0:02:58]} 3. Nd2 {[%clk 0:03:01]}  dxe4 {[%clk 0:02:57]} 4. Nxe4 {[%clk 0:03:02]}  Nf6 {[%clk 0:02:58]} 5. Nxf6+ {[%clk 0:03:03]}  exf6 {[%clk 0:02:58]} 6. c3 {[%clk 0:03:02]}  Bd6 {[%clk 0:02:57]} 7. Bd3 {[%clk 0:03:03]}  O-O {[%clk 0:02:56]} 8. Qc2 {[%clk 0:03:04]}  Re8+ {[%clk 0:02:54]} 9. Ne2 {[%clk 0:03:04]}  h5 {[%clk 0:02:52]} 10. Be3 {[%clk 0:03:01]}  Nd7 {[%clk 0:02:49]} 11. O-O-O {[%clk 0:03:01]}  Nf8 {[%clk 0:02:42]} 12. Ng3 {[%clk 0:03:00]}  g6 {[%clk 0:02:38]} 13. Rde1 {[%clk 0:02:53]}  b5 {[%clk 0:02:27]} 14. Ne4 {[%clk 0:02:42]}  Be7 {[%clk 0:02:21]} 15. f3 {[%clk 0:02:39]}  a5 {[%clk 0:02:16]} 16. Nf2 {[%clk 0:02:28]}  Be6 {[%clk 0:02:15]} 17. Kb1 {[%clk 0:02:28]}  Qd5 {[%clk 0:02:12]} 18. b3 {[%clk 0:02:23]}  f5 {[%clk 0:01:59]} 19. g4 {[%clk 0:02:05]}  a4 {[%clk 0:01:54]} 20. b4 {[%clk 0:02:04]}  Qxf3 {[%clk 0:01:38]} 21. gxf5 {[%clk 0:01:59]}  Bxf5 {[%clk 0:01:37]} 22. Bxf5 {[%clk 0:01:59]}  Qxf5 {[%clk 0:01:36]} 23. Qxf5 {[%clk 0:01:59]}  gxf5 {[%clk 0:01:36]} 24. Nd3 {[%clk 0:01:45]}  Ng6 {[%clk 0:01:35]} 25. Rhf1 {[%clk 0:01:41]}  Bh4 {[%clk 0:01:33]} 26. Re2 {[%clk 0:01:36]}  Re4 {[%clk 0:01:11]} 27. Kc2 {[%clk 0:00:33]}  Rae8 {[%clk 0:01:10]} 28. Kd2 {[%clk 0:00:32]}  Bg5 {[%clk 0:01:03]} 29. Rfe1 {[%clk 0:00:29]}  f4 {[%clk 0:00:52]} 30. Bxf4 {[%clk 0:00:14]}  Rxe2+ {[%clk 0:00:52]} 31. Rxe2 {[%clk 0:00:14]}  Rxe2+ {[%clk 0:00:53]} 32. Kxe2 {[%clk 0:00:13]}  Nxf4+ {[%clk 0:00:54]} 33. Nxf4 {[%clk 0:00:14]}  Bxf4 {[%clk 0:00:54]} 34. Kf3 {[%clk 0:00:13]}  Bxh2 {[%clk 0:00:54]} 35. Ke4 {[%clk 0:00:13]}  h4 {[%clk 0:00:54]} 36. d5 {[%clk 0:00:14]}  cxd5+ {[%clk 0:00:53]} 37. Kxd5 {[%clk 0:00:14]}  h3 {[%clk 0:00:54]} 38. Ke4 {[%clk 0:00:14]}  Be5 {[%clk 0:00:48]} 39. Kf3 {[%clk 0:00:14]}  Bxc3 {[%clk 0:00:48]} 40. a3 {[%clk 0:00:12]}  Bb2 {[%clk 0:00:48]} 41. Kg3 {[%clk 0:00:13]}  Bxa3 {[%clk 0:00:48]} 42. Kxh3 {[%clk 0:00:14]}  Bxb4 {[%clk 0:00:48]} 0-1


[Site "https://www.chess.com"]

[Event "Titled Tuesday Blitz April 4 Early 2023"]
[White "Miszler, Levente"]
[Black "Vaibhav Jayant Raut"]
[WhiteFideId "763276"]
[BlackFideId "5089034"]
[WhiteElo "2176"]
[BlackElo "2156"]
[Result "0-1"]
[Round "08"]
[TimeControl "180+2"]
[Date "2023.04.04"]
[WhiteClock "0:00:19"]
[BlackClock "0:00:29"]

1. Nf3 {[%clk 0:03:00]}  Nf6 {[%clk 0:02:59]} 2. c4 {[%clk 0:03:01]}  g6 {[%clk 0:02:58]} 3. g3 {[%clk 0:03:01]}  Bg7 {[%clk 0:02:58]} 4. Bg2 {[%clk 0:03:02]}  O-O {[%clk 0:02:59]} 5. O-O {[%clk 0:03:03]}  d6 {[%clk 0:03:00]} 6. Nc3 {[%clk 0:03:03]}  Nbd7 {[%clk 0:03:00]} 7. d3 {[%clk 0:03:03]}  e5 {[%clk 0:03:01]} 8. Rb1 {[%clk 0:03:03]}  Re8 {[%clk 0:03:01]} 9. e4 {[%clk 0:03:01]}  a5 {[%clk 0:03:01]} 10. a3 {[%clk 0:03:01]}  Nc5 {[%clk 0:02:59]} 11. b4 {[%clk 0:03:00]}  axb4 {[%clk 0:03:00]} 12. axb4 {[%clk 0:03:01]}  Ne6 {[%clk 0:03:01]} 13. Bb2 {[%clk 0:02:59]}  c6 {[%clk 0:03:00]} 14. Ra1 {[%clk 0:02:56]}  Bd7 {[%clk 0:03:00]} 15. Rxa8 {[%clk 0:02:51]}  Qxa8 {[%clk 0:03:01]} 16. Qa1 {[%clk 0:02:51]}  Bf8 {[%clk 0:02:59]} 17. Rb1 {[%clk 0:02:40]}  Rc8 {[%clk 0:02:30]} 18. Na4 {[%clk 0:02:24]}  Qa7 {[%clk 0:02:20]} 19. d4 {[%clk 0:02:25]}  Nxe4 {[%clk 0:02:15]} 20. dxe5 {[%clk 0:02:23]}  Qxf2+ {[%clk 0:02:13]} 21. Kh1 {[%clk 0:02:22]}  Qe3 {[%clk 0:02:06]} 22. h3 {[%clk 0:02:10]}  Nxg3+ {[%clk 0:02:03]} 23. Kh2 {[%clk 0:02:09]}  Ne4 {[%clk 0:01:55]} 24. Re1 {[%clk 0:01:59]}  Qf4+ {[%clk 0:01:52]} 25. Kg1 {[%clk 0:01:59]}  N6g5 {[%clk 0:01:42]} 26. Nxg5 {[%clk 0:01:53]}  Qf2+ {[%clk 0:01:38]} 27. Kh2 {[%clk 0:01:51]}  Nxg5 {[%clk 0:01:39]} 28. Rf1 {[%clk 0:01:40]}  Qe2 {[%clk 0:01:34]} 29. Nc3 {[%clk 0:01:16]}  Qxe5+ {[%clk 0:01:30]} 30. Kh1 {[%clk 0:01:17]}  Bxh3 {[%clk 0:01:23]} 31. Bxh3 {[%clk 0:01:09]}  Nxh3 {[%clk 0:01:22]} 32. Qd1 {[%clk 0:01:00]}  Ng5 {[%clk 0:01:03]} 33. Qg4 {[%clk 0:00:53]}  Re8 {[%clk 0:00:58]} 34. Rg1 {[%clk 0:00:34]}  Ne4 {[%clk 0:00:53]} 35. Qf3 {[%clk 0:00:32]}  Bg7 {[%clk 0:00:42]} 36. Nd1 {[%clk 0:00:25]}  Qe6 {[%clk 0:00:34]} 37. Bxg7 {[%clk 0:00:22]}  Kxg7 {[%clk 0:00:35]} 38. Ne3 {[%clk 0:00:22]}  Kh8 {[%clk 0:00:34]} 39. Ng4 {[%clk 0:00:21]}  f5 {[%clk 0:00:34]} 40. Nh6 {[%clk 0:00:19]}  Qf6 {[%clk 0:00:31]} 41. Ng4 {[%clk 0:00:19]}  fxg4 {[%clk 0:00:29]} 0-1


[Site "https://www.chess.com"]

[Event "Titled Tuesday Blitz April 4 Early 2023"]
[White "Kleiman, Jake"]
[Black "Andreev, Konstantin"]
[WhiteFideId "2020041"]
[BlackFideId "24239305"]
[WhiteElo "2609"]
[BlackElo "2106"]
[Result "1-0"]
[Round "08"]
[TimeControl "180+2"]
[Date "2023.04.04"]
[WhiteClock "0:02:44"]
[BlackClock "0:01:31"]

1. e4 {[%clk 0:02:53]}  c5 {[%clk 0:02:53]} 2. Nf3 {[%clk 0:02:52]}  e6 {[%clk 0:02:51]} 3. c3 {[%clk 0:02:51]}  d5 {[%clk 0:02:47]} 4. exd5 {[%clk 0:02:52]}  Qxd5 {[%clk 0:02:47]} 5. d4 {[%clk 0:02:53]}  Nf6 {[%clk 0:02:48]} 6. Na3 {[%clk 0:02:54]}  a6 {[%clk 0:02:47]} 7. Be3 {[%clk 0:02:51]}  cxd4 {[%clk 0:02:46]} 8. Nxd4 {[%clk 0:02:49]}  Bxa3 {[%clk 0:02:43]} 9. Qa4+ {[%clk 0:02:49]}  Bd7 {[%clk 0:02:38]} 10. Qxa3 {[%clk 0:02:49]}  Nc6 {[%clk 0:02:37]} 11. Nb5 {[%clk 0:02:46]}  Ne7 {[%clk 0:01:31]} 12. Nc7+ {[%clk 0:02:44]} 1-0


[Site "https://www.chess.com"]

[Event "Titled Tuesday Blitz April 4 Early 2023"]
[White "Vafin, Ayrat"]
[Black "Al-Tarboush, Ward"]
[WhiteFideId "4146530"]
[BlackFideId "7601450"]
[WhiteElo "2317"]
[BlackElo "2265"]
[Result "0-1"]
[Round "08"]
[TimeControl "180+2"]
[Date "2023.04.04"]
[WhiteClock "0:00:04"]
[BlackClock "0:00:20"]

1. Nf3 {[%clk 0:03:00]}  Nf6 {[%clk 0:02:58]} 2. g3 {[%clk 0:03:01]}  g6 {[%clk 0:02:56]} 3. Bg2 {[%clk 0:03:01]}  Bg7 {[%clk 0:02:57]} 4. O-O {[%clk 0:03:02]}  O-O {[%clk 0:02:58]} 5. c4 {[%clk 0:03:02]}  c6 {[%clk 0:02:55]} 6. d4 {[%clk 0:03:02]}  d5 {[%clk 0:02:55]} 7. cxd5 {[%clk 0:03:03]}  cxd5 {[%clk 0:02:55]} 8. Ne5 {[%clk 0:03:03]}  Bf5 {[%clk 0:02:50]} 9. Nc3 {[%clk 0:03:01]}  Nc6 {[%clk 0:02:49]} 10. Nxc6 {[%clk 0:03:01]}  bxc6 {[%clk 0:02:50]} 11. b3 {[%clk 0:03:01]}  Qa5 {[%clk 0:02:47]} 12. Na4 {[%clk 0:03:01]}  Ne4 {[%clk 0:02:46]} 13. Ba3 {[%clk 0:03:00]}  Rfe8 {[%clk 0:02:37]} 14. Rc1 {[%clk 0:02:59]}  Rac8 {[%clk 0:02:34]} 15. e3 {[%clk 0:02:43]}  h5 {[%clk 0:02:34]} 16. Qe1 {[%clk 0:02:31]}  Qa6 {[%clk 0:02:11]} 17. f3 {[%clk 0:02:24]}  Nd6 {[%clk 0:02:07]} 18. Rf2 {[%clk 0:02:15]}  Qb7 {[%clk 0:02:02]} 19. Bf1 {[%clk 0:01:58]}  Nb5 {[%clk 0:01:55]} 20. Bb2 {[%clk 0:01:58]}  a6 {[%clk 0:01:51]} 21. Nc5 {[%clk 0:01:57]}  Qb6 {[%clk 0:01:52]} 22. Na4 {[%clk 0:01:56]}  Qc7 {[%clk 0:01:50]} 23. Qb4 {[%clk 0:01:51]}  e5 {[%clk 0:01:46]} 24. dxe5 {[%clk 0:01:45]}  Bxe5 {[%clk 0:01:47]} 25. Bxe5 {[%clk 0:01:40]}  Qxe5 {[%clk 0:01:48]} 26. Re1 {[%clk 0:01:28]}  d4 {[%clk 0:01:47]} 27. e4 {[%clk 0:01:26]}  c5 {[%clk 0:01:47]} 28. Qa5 {[%clk 0:01:18]}  d3 {[%clk 0:01:14]} 29. Bxd3 {[%clk 0:01:10]}  Qd4 {[%clk 0:01:14]} 30. Bxb5 {[%clk 0:01:05]}  axb5 {[%clk 0:01:12]} 31. Qxb5 {[%clk 0:01:06]}  Bd7 {[%clk 0:01:11]} 32. Qe2 {[%clk 0:00:45]}  c4 {[%clk 0:01:10]} 33. Qd2 {[%clk 0:00:39]}  Qa7 {[%clk 0:01:08]} 34. Nc3 {[%clk 0:00:35]}  Red8 {[%clk 0:01:01]} 35. Qb2 {[%clk 0:00:30]}  Be6 {[%clk 0:01:02]} 36. Kg2 {[%clk 0:00:27]}  Rd3 {[%clk 0:00:59]} 37. bxc4 {[%clk 0:00:25]}  Rxc4 {[%clk 0:01:00]} 38. Nd5 {[%clk 0:00:24]}  Bxd5 {[%clk 0:00:56]} 39. exd5 {[%clk 0:00:25]}  Rcc3 {[%clk 0:00:47]} 40. Rd1 {[%clk 0:00:13]}  Qd7 {[%clk 0:00:37]} 41. Rxd3 {[%clk 0:00:09]}  Rxd3 {[%clk 0:00:38]} 42. Qb8+ {[%clk 0:00:09]}  Kh7 {[%clk 0:00:38]} 43. Qf4 {[%clk 0:00:08]}  Rxd5 {[%clk 0:00:37]} 44. h4 {[%clk 0:00:08]}  Rd1 {[%clk 0:00:37]} 45. Re2 {[%clk 0:00:07]}  Qa7 {[%clk 0:00:35]} 46. Qe3 {[%clk 0:00:07]}  Qa6 {[%clk 0:00:31]} 47. Qf2 {[%clk 0:00:05]}  Ra1 {[%clk 0:00:26]} 48. Rd2 {[%clk 0:00:05]}  Qc6 {[%clk 0:00:25]} 49. Qe2 {[%clk 0:00:05]}  Qc1 {[%clk 0:00:25]} 50. f4 {[%clk 0:00:01]}  Qh1+ {[%clk 0:00:19]} 51. Kf2 {[%clk 0:00:02]}  Qg1+ {[%clk 0:00:19]} 52. Kf3 {[%clk 0:00:01]}  Rf1+ {[%clk 0:00:19]} 53. Ke4 {[%clk 0:00:02]}  Re1 {[%clk 0:00:20]} 54. Kd3 {[%clk 0:00:02]}  Rxe2 {[%clk 0:00:20]} 55. Rxe2 {[%clk 0:00:03]}  Qxg3+ {[%clk 0:00:20]} 56. Ke4 {[%clk 0:00:04]}  Qxh4 {[%clk 0:00:20]} 57. Kf3 {[%clk 0:00:04]}  Qg4+ {[%clk 0:00:20]} 0-1


[Site "https://www.chess.com"]

[Event "Titled Tuesday Blitz April 4 Early 2023"]
[White "M_Bozorov"]
[Black "Ambartsumova, Karina"]
[BlackFideId "4166299"]
[WhiteElo "2463"]
[BlackElo "2240"]
[Result "0-1"]
[Round "08"]
[TimeControl "180+2"]
[Date "2023.04.04"]
[WhiteClock "0:00:14"]
[BlackClock "0:00:15"]

1. e4 {[%clk 0:03:00]}  c5 {[%clk 0:02:59]} 2. Nf3 {[%clk 0:02:58]}  Nc6 {[%clk 0:02:59]} 3. Bb5 {[%clk 0:02:56]}  e6 {[%clk 0:02:59]} 4. O-O {[%clk 0:02:55]}  Nge7 {[%clk 0:02:59]} 5. Re1 {[%clk 0:02:55]}  a6 {[%clk 0:02:58]} 6. Bxc6 {[%clk 0:02:56]}  Nxc6 {[%clk 0:02:58]} 7. d4 {[%clk 0:02:56]}  cxd4 {[%clk 0:02:58]} 8. Nxd4 {[%clk 0:02:57]}  Qc7 {[%clk 0:02:58]} 9. Nc3 {[%clk 0:02:56]}  Bd6 {[%clk 0:02:38]} 10. h3 {[%clk 0:01:57]}  Nxd4 {[%clk 0:02:28]} 11. Qxd4 {[%clk 0:01:58]}  Bh2+ {[%clk 0:02:28]} 12. Kh1 {[%clk 0:01:57]}  Be5 {[%clk 0:02:29]} 13. Qd3 {[%clk 0:01:55]}  O-O {[%clk 0:02:27]} 14. Be3 {[%clk 0:01:47]}  b5 {[%clk 0:02:20]} 15. a3 {[%clk 0:01:46]}  Bb7 {[%clk 0:02:18]} 16. Rad1 {[%clk 0:01:45]}  Rfd8 {[%clk 0:02:14]} 17. Bd4 {[%clk 0:01:45]}  d6 {[%clk 0:02:00]} 18. Bxe5 {[%clk 0:01:37]}  dxe5 {[%clk 0:01:59]} 19. Qe3 {[%clk 0:01:38]}  h6 {[%clk 0:01:57]} 20. f3 {[%clk 0:01:37]}  Qc6 {[%clk 0:01:40]} 21. Rd2 {[%clk 0:01:29]}  a5 {[%clk 0:01:34]} 22. Red1 {[%clk 0:01:22]}  Rxd2 {[%clk 0:01:33]} 23. Rxd2 {[%clk 0:01:22]}  b4 {[%clk 0:01:32]} 24. axb4 {[%clk 0:01:23]}  axb4 {[%clk 0:01:33]} 25. Ne2 {[%clk 0:01:19]}  Ra1+ {[%clk 0:01:23]} 26. Kh2 {[%clk 0:01:18]}  Ba6 {[%clk 0:01:15]} 27. Ng3 {[%clk 0:01:04]}  Kh7 {[%clk 0:01:02]} 28. Nh5 {[%clk 0:00:57]}  Qc4 {[%clk 0:00:44]} 29. Rd7 {[%clk 0:00:38]}  Kg6 {[%clk 0:00:29]} 30. Qf2 {[%clk 0:00:37]}  Kxh5 {[%clk 0:00:20]} 31. Qg3 {[%clk 0:00:36]}  g5 {[%clk 0:00:20]} 32. Rxf7 {[%clk 0:00:29]}  Kg6 {[%clk 0:00:20]} 33. Rf8 {[%clk 0:00:19]}  Qc5 {[%clk 0:00:14]} 34. Qg4 {[%clk 0:00:16]}  Qxf8 {[%clk 0:00:14]} 35. Qxe6+ {[%clk 0:00:15]}  Qf6 {[%clk 0:00:15]} 36. Qe8+ {[%clk 0:00:15]}  Kg7 {[%clk 0:00:15]} 37. Qd7+ {[%clk 0:00:14]}  Qf7 {[%clk 0:00:15]} 0-1


[Site "https://www.chess.com"]